[Event "Titled Tuesday Blitz December 20 Early 2022"]
[White "von Klitzing, Ole"]
[Black "CDOEspiao"]
[WhiteFideId "34618821"]
[WhiteElo "1564"]
[BlackElo "2486"]
[Result "1-0"]
[Round "09"]
[TimeControl "180+2"]
[Date "2022.12.20"]
[WhiteClock "0:00:02"]
[BlackClock "0:00:03"]

1. d4 {[%clk 0:03:00]}  Nf6 {[%clk 0:02:59]} 2. c4 {[%clk 0:02:59]}  c5 {[%clk 0:03:00]} 3. d5 {[%clk 0:02:59]}  b5 {[%clk 0:03:01]} 4. cxb5 {[%clk 0:02:58]}  a6 {[%clk 0:03:01]} 5. bxa6 {[%clk 0:02:57]}  g6 {[%clk 0:03:01]} 6. Nc3 {[%clk 0:02:58]}  Bg7 {[%clk 0:03:01]} 7. g3 {[%clk 0:02:55]}  O-O {[%clk 0:03:01]} 8. Bg2 {[%clk 0:02:55]}  d6 {[%clk 0:03:01]} 9. Nf3 {[%clk 0:02:55]}  Nxa6 {[%clk 0:03:01]} 10. O-O {[%clk 0:02:52]}  Qb6 {[%clk 0:03:01]} 11. Rb1 {[%clk 0:02:51]}  Nc7 {[%clk 0:02:55]} 12. Re1 {[%clk 0:02:48]}  Ba6 {[%clk 0:02:48]} 13. b3 {[%clk 0:02:46]}  Nb5 {[%clk 0:02:36]} 14. Nxb5 {[%clk 0:02:41]}  Bxb5 {[%clk 0:02:37]} 15. Qc2 {[%clk 0:02:38]}  Rfc8 {[%clk 0:02:33]} 16. a4 {[%clk 0:02:31]}  Bd7 {[%clk 0:02:32]} 17. Nd2 {[%clk 0:02:31]}  Qb4 {[%clk 0:02:20]} 18. Bb2 {[%clk 0:02:23]}  Ng4 {[%clk 0:01:39]} 19. Bxg7 {[%clk 0:02:11]}  Kxg7 {[%clk 0:01:40]} 20. Nc4 {[%clk 0:02:05]}  f6 {[%clk 0:01:17]} 21. f4 {[%clk 0:01:59]}  h5 {[%clk 0:01:02]} 22. h3 {[%clk 0:01:56]}  Nh6 {[%clk 0:01:02]} 23. e4 {[%clk 0:01:57]}  Nf7 {[%clk 0:01:01]} 24. Re3 {[%clk 0:01:52]}  Rcb8 {[%clk 0:01:00]} 25. Rbe1 {[%clk 0:01:50]}  Ra7 {[%clk 0:00:53]} 26. R1e2 {[%clk 0:01:46]}  Rab7 {[%clk 0:00:50]} 27. Kh2 {[%clk 0:01:41]}  Bc8 {[%clk 0:00:48]} 28. Qc1 {[%clk 0:01:22]}  Ra7 {[%clk 0:00:42]} 29. e5 {[%clk 0:01:12]}  Ba6 {[%clk 0:00:39]} 30. exf6+ {[%clk 0:01:04]}  exf6 {[%clk 0:00:40]} 31. Rc2 {[%clk 0:01:04]}  Bxc4 {[%clk 0:00:34]} 32. Rxc4 {[%clk 0:01:05]}  Qb7 {[%clk 0:00:34]} 33. Qc3 {[%clk 0:01:01]}  Qd7 {[%clk 0:00:25]} 34. Re6 {[%clk 0:01:00]}  Qd8 {[%clk 0:00:26]} 35. Bf3 {[%clk 0:00:47]}  Rab7 {[%clk 0:00:21]} 36. Bd1 {[%clk 0:00:47]}  Rb4 {[%clk 0:00:21]} 37. Bc2 {[%clk 0:00:46]}  Rxc4 {[%clk 0:00:20]} 38. Qxc4 {[%clk 0:00:46]}  Qf8 {[%clk 0:00:16]} 39. Qd3 {[%clk 0:00:42]}  f5 {[%clk 0:00:17]} 40. Qc3+ {[%clk 0:00:40]}  Kh7 {[%clk 0:00:16]} 41. Qf6 {[%clk 0:00:40]}  Qg7 {[%clk 0:00:16]} 42. Bxf5 {[%clk 0:00:26]}  Qxf6 {[%clk 0:00:09]} 43. Rxf6 {[%clk 0:00:26]}  gxf5 {[%clk 0:00:10]} 44. Rxf7+ {[%clk 0:00:26]}  Kg6 {[%clk 0:00:11]} 45. Rd7 {[%clk 0:00:26]}  Rxb3 {[%clk 0:00:11]} 46. Rxd6+ {[%clk 0:00:26]}  Kf7 {[%clk 0:00:12]} 47. h4 {[%clk 0:00:25]}  Ra3 {[%clk 0:00:12]} 48. Rc6 {[%clk 0:00:25]}  Rxa4 {[%clk 0:00:12]} 49. Rxc5 {[%clk 0:00:25]}  Rd4 {[%clk 0:00:13]} 50. Kg2 {[%clk 0:00:23]}  Ke7 {[%clk 0:00:12]} 51. Rc7+ {[%clk 0:00:22]}  Kf6 {[%clk 0:00:12]} 52. Rh7 {[%clk 0:00:19]}  Kg6 {[%clk 0:00:07]} 53. Rd7 {[%clk 0:00:19]}  Kf6 {[%clk 0:00:07]} 54. Rd6+ {[%clk 0:00:19]}  Kg7 {[%clk 0:00:07]} 55. Kf2 {[%clk 0:00:18]}  Rd3 {[%clk 0:00:07]} 56. Kg2 {[%clk 0:00:18]}  Rd4 {[%clk 0:00:07]} 57. Kf3 {[%clk 0:00:18]}  Rd3+ {[%clk 0:00:08]} 58. Kf2 {[%clk 0:00:19]}  Rd4 {[%clk 0:00:08]} 59. Ke3 {[%clk 0:00:19]}  Rd1 {[%clk 0:00:08]} 60. Rd8 {[%clk 0:00:17]}  Kf6 {[%clk 0:00:08]} 61. Rg8 {[%clk 0:00:16]}  Rxd5 {[%clk 0:00:07]} 62. Rg5 {[%clk 0:00:16]}  Ra5 {[%clk 0:00:07]} 63. Rxh5 {[%clk 0:00:16]}  Ra3+ {[%clk 0:00:08]} 64. Kf2 {[%clk 0:00:16]}  Ra2+ {[%clk 0:00:09]} 65. Kf3 {[%clk 0:00:17]}  Ra3+ {[%clk 0:00:08]} 66. Kg2 {[%clk 0:00:17]}  Ra2+ {[%clk 0:00:09]} 67. Kh3 {[%clk 0:00:17]}  Ra3 {[%clk 0:00:10]} 68. Rh6+ {[%clk 0:00:17]}  Kg7 {[%clk 0:00:11]} 69. Rb6 {[%clk 0:00:17]}  Ra1 {[%clk 0:00:11]} 70. Rb2 {[%clk 0:00:15]}  Rc1 {[%clk 0:00:10]} 71. Kg2 {[%clk 0:00:15]}  Kf6 {[%clk 0:00:10]} 72. Rb6+ {[%clk 0:00:15]}  Kg7 {[%clk 0:00:11]} 73. h5 {[%clk 0:00:15]}  Rc2+ {[%clk 0:00:11]} 74. Kh3 {[%clk 0:00:16]}  Rc1 {[%clk 0:00:11]} 75. Kh4 {[%clk 0:00:16]}  Rg1 {[%clk 0:00:10]} 76. Rb3 {[%clk 0:00:13]}  Kf6 {[%clk 0:00:10]} 77. Rb6+ {[%clk 0:00:13]}  Kg7 {[%clk 0:00:10]} 78. Rc6 {[%clk 0:00:12]}  Kf7 {[%clk 0:00:08]} 79. h6 {[%clk 0:00:10]}  Rg2 {[%clk 0:00:08]} 80. Kg5 {[%clk 0:00:09]}  Rxg3+ {[%clk 0:00:08]} 81. Kxf5 {[%clk 0:00:10]}  Rh3 {[%clk 0:00:08]} 82. h7 {[%clk 0:00:09]}  Kg7 {[%clk 0:00:07]} 83. Rc7+ {[%clk 0:00:09]}  Kh8 {[%clk 0:00:05]} 84. Ke5 {[%clk 0:00:06]}  Rh5+ {[%clk 0:00:01]} 85. f5 {[%clk 0:00:06]}  Rh1 {[%clk 0:00:02]} 86. Ke6 {[%clk 0:00:04]}  Re1+ {[%clk 0:00:02]} 87. Kf7 {[%clk 0:00:04]}  Kxh7 {[%clk 0:00:02]} 88. f6 {[%clk 0:00:03]}  Rf1 {[%clk 0:00:02]} 89. Rc3 {[%clk 0:00:01]}  Re1 {[%clk 0:00:03]} 90. Rh3# {[%clk 0:00:02]} 1-0


[Site "https://www.chess.com"]

[Event "Titled Tuesday Blitz December 20 Early 2022"]
[White "APOKALIPSA13"]
[Black "Shironin, Daniil Aleks"]
[BlackFideId "55812198"]
[WhiteElo "2220"]
[BlackElo "2115"]
[Result "1-0"]
[Round "10"]
[TimeControl "180+2"]
[Date "2022.12.20"]
[WhiteClock "0:00:51"]
[BlackClock "0:00:40"]

1. e4 {[%clk 0:03:00]}  c5 {[%clk 0:02:59]} 2. Be2 {[%clk 0:02:59]}  d6 {[%clk 0:02:58]} 3. f4 {[%clk 0:03:00]}  Nc6 {[%clk 0:02:57]} 4. Nf3 {[%clk 0:03:00]}  g6 {[%clk 0:02:57]} 5. O-O {[%clk 0:03:00]}  Bg7 {[%clk 0:02:58]} 6. c3 {[%clk 0:03:00]}  e6 {[%clk 0:02:59]} 7. Qe1 {[%clk 0:02:56]}  Nge7 {[%clk 0:02:58]} 8. d3 {[%clk 0:02:56]}  O-O {[%clk 0:02:58]} 9. Be3 {[%clk 0:02:53]}  Rb8 {[%clk 0:02:57]} 10. Nbd2 {[%clk 0:02:53]}  b5 {[%clk 0:02:56]} 11. Kh1 {[%clk 0:02:52]}  b4 {[%clk 0:02:54]} 12. Rc1 {[%clk 0:02:52]}  Qa5 {[%clk 0:02:45]} 13. Nc4 {[%clk 0:02:45]}  Qc7 {[%clk 0:02:44]} 14. Qh4 {[%clk 0:02:33]}  bxc3 {[%clk 0:02:26]} 15. bxc3 {[%clk 0:02:31]}  d5 {[%clk 0:02:20]} 16. Nce5 {[%clk 0:02:19]}  c4 {[%clk 0:02:09]} 17. dxc4 {[%clk 0:02:13]}  dxe4 {[%clk 0:02:08]} 18. Ng5 {[%clk 0:02:11]}  h6 {[%clk 0:02:05]} 19. Ngxf7 {[%clk 0:01:49]}  Rxf7 {[%clk 0:02:00]} 20. Nxf7 {[%clk 0:01:49]}  Kxf7 {[%clk 0:02:00]} 21. f5 {[%clk 0:01:44]}  Kg8 {[%clk 0:01:34]} 22. f6 {[%clk 0:01:39]}  Nf5 {[%clk 0:01:33]} 23. Rxf5 {[%clk 0:01:35]}  exf5 {[%clk 0:01:32]} 24. fxg7 {[%clk 0:01:35]}  Qxg7 {[%clk 0:01:20]} 25. Bxh6 {[%clk 0:01:32]}  Qe7 {[%clk 0:01:10]} 26. Bg5 {[%clk 0:01:28]}  Qh7 {[%clk 0:01:09]} 27. Qg3 {[%clk 0:01:24]}  Rb2 {[%clk 0:01:07]} 28. Bf1 {[%clk 0:01:17]}  Bb7 {[%clk 0:01:01]} 29. Qd6 {[%clk 0:01:10]}  Qg7 {[%clk 0:00:49]} 30. c5 {[%clk 0:01:00]}  Qe5 {[%clk 0:00:44]} 31. Qxg6+ {[%clk 0:00:59]}  Qg7 {[%clk 0:00:43]} 32. Bc4+ {[%clk 0:00:57]}  Kh8 {[%clk 0:00:40]} 33. Qh5+ {[%clk 0:00:51]} 1-0


[Site "https://www.chess.com"]

[Event "Titled Tuesday Blitz December 20 Early 2022"]
[White "Alibaev, Akbar"]
[Black "Sam_ChessMood"]
[WhiteFideId "14200325"]
[WhiteElo "2295"]
[BlackElo "2882"]
[Result "1-0"]
[Round "10"]
[TimeControl "180+2"]
[Date "2022.12.20"]
[WhiteClock "0:00:28"]
[BlackClock "0:00:04"]

1. e4 {[%clk 0:03:00]}  c5 {[%clk 0:02:56]} 2. Nf3 {[%clk 0:03:01]}  d6 {[%clk 0:02:56]} 3. d4 {[%clk 0:03:01]}  cxd4 {[%clk 0:02:56]} 4. Nxd4 {[%clk 0:03:02]}  Nf6 {[%clk 0:02:56]} 5. Nc3 {[%clk 0:03:03]}  a6 {[%clk 0:02:57]} 6. Bg5 {[%clk 0:03:02]}  Nbd7 {[%clk 0:02:53]} 7. Bc4 {[%clk 0:03:01]}  Qb6 {[%clk 0:02:50]} 8. Bb3 {[%clk 0:03:01]}  e6 {[%clk 0:02:49]} 9. Qd2 {[%clk 0:03:01]}  Be7 {[%clk 0:02:49]} 10. O-O-O {[%clk 0:03:01]}  Nc5 {[%clk 0:02:50]} 11. Rhe1 {[%clk 0:03:01]}  O-O {[%clk 0:02:33]} 12. f4 {[%clk 0:03:00]}  h6 {[%clk 0:02:17]} 13. h4 {[%clk 0:02:41]}  Rd8 {[%clk 0:01:56]} 14. g4 {[%clk 0:02:33]}  Kf8 {[%clk 0:01:30]} 15. Bxf6 {[%clk 0:02:24]}  Bxf6 {[%clk 0:01:31]} 16. Kb1 {[%clk 0:02:24]}  Bxh4 {[%clk 0:00:33]} 17. Rh1 {[%clk 0:02:20]}  Bf6 {[%clk 0:00:33]} 18. g5 {[%clk 0:01:37]}  hxg5 {[%clk 0:00:33]} 19. e5 {[%clk 0:01:36]}  dxe5 {[%clk 0:00:25]} 20. fxe5 {[%clk 0:01:35]}  Bxe5 {[%clk 0:00:18]} 21. Rh8+ {[%clk 0:01:33]}  Ke7 {[%clk 0:00:18]} 22. Rxd8 {[%clk 0:01:33]}  Bf4 {[%clk 0:00:06]} 23. Qf2 {[%clk 0:00:51]}  Kxd8 {[%clk 0:00:03]} 24. Nxe6+ {[%clk 0:00:39]}  Ke8 {[%clk 0:00:04]} 25. Nxc5 {[%clk 0:00:33]}  Qc6 {[%clk 0:00:04]} 26. Qe2+ {[%clk 0:00:28]}  Kf8 {[%clk 0:00:04]} 27. Rd8+ {[%clk 0:00:28]} 1-0


[Site "https://www.chess.com"]

[Event "Titled Tuesday Blitz December 20 Early 2022"]
[White "Arnaldofdelavaramulet"]
[Black "vovachesss"]
[WhiteElo "2648"]
[BlackElo "2756"]
[Result "1-0"]
[Round "10"]
[TimeControl "180+2"]
[Date "2022.12.20"]
[WhiteClock "0:00:03"]
[BlackClock "0:00:01"]

1. Nf3 {[%clk 0:02:53]}  d6 {[%clk 0:02:56]} 2. g3 {[%clk 0:02:54]}  e5 {[%clk 0:02:56]} 3. Bg2 {[%clk 0:02:54]}  e4 {[%clk 0:02:57]} 4. Nd4 {[%clk 0:02:53]}  f5 {[%clk 0:02:57]} 5. d3 {[%clk 0:02:53]}  Nf6 {[%clk 0:02:58]} 6. c4 {[%clk 0:02:50]}  Nc6 {[%clk 0:02:52]} 7. Nb3 {[%clk 0:02:46]}  d5 {[%clk 0:02:49]} 8. cxd5 {[%clk 0:02:42]}  Qxd5 {[%clk 0:02:45]} 9. O-O {[%clk 0:02:43]}  Bb4 {[%clk 0:02:24]} 10. a3 {[%clk 0:02:39]}  Bd6 {[%clk 0:02:07]} 11. Nc3 {[%clk 0:02:37]}  Qe6 {[%clk 0:02:07]} 12. Bg5 {[%clk 0:02:30]}  exd3 {[%clk 0:02:05]} 13. exd3 {[%clk 0:01:55]}  O-O {[%clk 0:02:02]} 14. d4 {[%clk 0:01:54]}  Qf7 {[%clk 0:01:52]} 15. Re1 {[%clk 0:01:39]}  Kh8 {[%clk 0:01:47]} 16. Nc5 {[%clk 0:01:28]}  h6 {[%clk 0:01:11]} 17. Bxf6 {[%clk 0:01:09]}  Qxf6 {[%clk 0:01:12]} 18. b4 {[%clk 0:01:09]}  Rb8 {[%clk 0:01:04]} 19. Nb5 {[%clk 0:00:58]}  a6 {[%clk 0:00:53]} 20. Nxd6 {[%clk 0:00:58]}  Qxd6 {[%clk 0:00:53]} 21. Qh5 {[%clk 0:00:47]}  b6 {[%clk 0:00:42]} 22. Nd3 {[%clk 0:00:43]}  Nxd4 {[%clk 0:00:23]} 23. Ne5 {[%clk 0:00:39]}  Kh7 {[%clk 0:00:24]} 24. Rad1 {[%clk 0:00:35]}  c5 {[%clk 0:00:24]} 25. Nc6 {[%clk 0:00:33]}  Rb7 {[%clk 0:00:18]} 26. bxc5 {[%clk 0:00:20]}  bxc5 {[%clk 0:00:17]} 27. Nxd4 {[%clk 0:00:20]}  cxd4 {[%clk 0:00:17]} 28. Bxb7 {[%clk 0:00:19]}  Bxb7 {[%clk 0:00:18]} 29. f3 {[%clk 0:00:06]}  d3 {[%clk 0:00:12]} 30. Rd2 {[%clk 0:00:05]}  Qd4+ {[%clk 0:00:10]} 31. Kg2 {[%clk 0:00:04]}  Bc6 {[%clk 0:00:07]} 32. Qh4 {[%clk 0:00:03]}  Qd5 {[%clk 0:00:05]} 33. Qf4 {[%clk 0:00:03]}  Rf7 {[%clk 0:00:04]} 34. Re3 {[%clk 0:00:03]}  Bb5 {[%clk 0:00:03]} 35. Qe5 {[%clk 0:00:02]}  Qc6 {[%clk 0:00:03]} 36. Qe6 {[%clk 0:00:03]}  Qc7 {[%clk 0:00:02]} 37. g4 {[%clk 0:00:01]}  fxg4 {[%clk 0:00:02]} 38. Qe4+ {[%clk 0:00:02]}  Kg8 {[%clk 0:00:01]} 39. Qxg4 {[%clk 0:00:03]} 1-0


[Site "https://www.chess.com"]

[Event "Titled Tuesday Blitz December 20 Early 2022"]
[White "Artels, Lieven"]
[Black "PushingpawnsNYC"]
[WhiteFideId "205834"]
[WhiteElo "1984"]
[BlackElo "2375"]
[Result "0-1"]
[Round "10"]
[TimeControl "180+2"]
[Date "2022.12.20"]
[WhiteClock "0:00:26"]
[BlackClock "0:00:05"]

1. b4 {[%clk 0:02:57]}  e5 {[%clk 0:02:46]} 2. Bb2 {[%clk 0:02:55]}  Bxb4 {[%clk 0:02:15]} 3. Bxe5 {[%clk 0:02:53]}  Nf6 {[%clk 0:02:03]} 4. Nf3 {[%clk 0:02:48]}  Nc6 {[%clk 0:01:55]} 5. Bb2 {[%clk 0:02:47]}  d5 {[%clk 0:01:46]} 6. e3 {[%clk 0:02:45]}  Bg4 {[%clk 0:01:23]} 7. Be2 {[%clk 0:02:43]}  Qd6 {[%clk 0:01:17]} 8. c4 {[%clk 0:02:41]}  dxc4 {[%clk 0:01:06]} 9. Bxc4 {[%clk 0:02:40]}  O-O-O {[%clk 0:00:59]} 10. Be2 {[%clk 0:02:30]}  Ne4 {[%clk 0:00:47]} 11. a3 {[%clk 0:02:11]}  Ba5 {[%clk 0:00:40]} 12. Bxg7 {[%clk 0:02:10]}  Rhg8 {[%clk 0:00:38]} 13. Bd4 {[%clk 0:02:04]}  Nxd4 {[%clk 0:00:31]} 14. Nxd4 {[%clk 0:01:53]}  Bxe2 {[%clk 0:00:29]} 15. Qxe2 {[%clk 0:01:50]}  Rxg2 {[%clk 0:00:26]} 16. Nb5 {[%clk 0:01:36]}  Qf6 {[%clk 0:00:21]} 17. Rf1 {[%clk 0:01:28]}  Qxa1 {[%clk 0:00:20]} 18. Nxa7+ {[%clk 0:01:26]}  Kb8 {[%clk 0:00:17]} 19. Nb5 {[%clk 0:01:21]}  Qxb1+ {[%clk 0:00:17]} 20. Qd1 {[%clk 0:01:20]}  Bxd2+ {[%clk 0:00:14]} 21. Ke2 {[%clk 0:01:16]}  Qxb5+ {[%clk 0:00:13]} 22. Kf3 {[%clk 0:01:15]}  Qg5 {[%clk 0:00:08]} 23. h3 {[%clk 0:01:08]}  Rg3+ {[%clk 0:00:02]} 24. fxg3 {[%clk 0:01:07]}  Rd6 {[%clk 0:00:03]} 25. Kxe4 {[%clk 0:01:01]}  Qxe3+ {[%clk 0:00:03]} 26. Kf5 {[%clk 0:00:58]}  Rd5+ {[%clk 0:00:03]} 27. Kf6 {[%clk 0:00:55]}  Qe6+ {[%clk 0:00:03]} 28. Kg7 {[%clk 0:00:53]}  Bc3+ {[%clk 0:00:03]} 29. Kf8 {[%clk 0:00:48]}  Rxd1 {[%clk 0:00:03]} 30. Rxd1 {[%clk 0:00:46]}  Bf6 {[%clk 0:00:03]} 31. Rd8+ {[%clk 0:00:32]}  Bxd8 {[%clk 0:00:01]} 32. h4 {[%clk 0:00:28]}  Qf6 {[%clk 0:00:02]} 33. g4 {[%clk 0:00:28]}  Be7+ {[%clk 0:00:02]} 34. Kg8 {[%clk 0:00:28]}  Qe6 {[%clk 0:00:03]} 35. g5 {[%clk 0:00:28]}  f5+ {[%clk 0:00:04]} 36. Kxh7 {[%clk 0:00:26]}  Qf7+ {[%clk 0:00:04]} 37. Kh6 {[%clk 0:00:26]}  Bf8# {[%clk 0:00:05]} 0-1


[Site "https://www.chess.com"]

[Event "Titled Tuesday Blitz December 20 Early 2022"]
[White "Artem_0degov"]
[Black "BlueWizzard"]
[WhiteElo "2661"]
[BlackElo "2862"]
[Result "0-1"]
[Round "10"]
[TimeControl "180+2"]
[Date "2022.12.20"]
[WhiteClock "0:00:30"]
[BlackClock "0:01:33"]

1. d4 {[%clk 0:03:00]}  b6 {[%clk 0:03:00]} 2. c4 {[%clk 0:02:59]}  Bb7 {[%clk 0:03:01]} 3. Nc3 {[%clk 0:02:59]}  e6 {[%clk 0:03:00]} 4. e4 {[%clk 0:02:59]}  Nf6 {[%clk 0:03:00]} 5. Bd3 {[%clk 0:02:54]}  Bb4 {[%clk 0:02:59]} 6. Qc2 {[%clk 0:02:26]}  c5 {[%clk 0:02:47]} 7. d5 {[%clk 0:02:25]}  exd5 {[%clk 0:02:43]} 8. exd5 {[%clk 0:02:23]}  O-O {[%clk 0:02:43]} 9. Ne2 {[%clk 0:02:23]}  b5 {[%clk 0:02:40]} 10. O-O {[%clk 0:02:14]}  bxc4 {[%clk 0:02:40]} 11. Bxc4 {[%clk 0:02:15]}  d6 {[%clk 0:02:36]} 12. Bf4 {[%clk 0:02:13]}  Ba6 {[%clk 0:02:32]} 13. Bxa6 {[%clk 0:02:05]}  Nxa6 {[%clk 0:02:33]} 14. Rad1 {[%clk 0:02:04]}  Nc7 {[%clk 0:02:27]} 15. Bg5 {[%clk 0:01:52]}  h6 {[%clk 0:02:22]} 16. Bxf6 {[%clk 0:01:32]}  Qxf6 {[%clk 0:02:23]} 17. Ne4 {[%clk 0:01:32]}  Qg6 {[%clk 0:02:20]} 18. Qc4 {[%clk 0:01:11]}  Rae8 {[%clk 0:02:02]} 19. N2g3 {[%clk 0:01:10]}  f5 {[%clk 0:02:02]} 20. Nc3 {[%clk 0:01:02]}  Bxc3 {[%clk 0:01:55]} 21. bxc3 {[%clk 0:00:58]}  f4 {[%clk 0:01:55]} 22. Ne2 {[%clk 0:00:50]}  Rxe2 {[%clk 0:01:48]} 23. Rfe1 {[%clk 0:00:32]}  f3 {[%clk 0:01:42]} 24. g3 {[%clk 0:00:31]}  Qf5 {[%clk 0:01:33]} 25. Rxe2 {[%clk 0:00:30]}  Qh3 {[%clk 0:01:33]} 26. Qg4 {[%clk 0:00:30]}  Qg2# {[%clk 0:01:33]} 0-1


[Site "https://www.chess.com"]

[Event "Titled Tuesday Blitz December 20 Early 2022"]
[White "AttilaTurzo"]
[Black "Aishath, Aika"]
[BlackFideId "16702026"]
[WhiteElo "2578"]
[BlackElo "2770"]
[Result "1-0"]
[Round "10"]
[TimeControl "180+2"]
[Date "2022.12.20"]
[WhiteClock "0:00:52"]
[BlackClock "0:00:16"]

1. d4 {[%clk 0:03:00]}  d5 {[%clk 0:02:58]} 2. Bf4 {[%clk 0:03:00]}  Nf6 {[%clk 0:02:57]} 3. e3 {[%clk 0:03:00]}  Bg4 {[%clk 0:02:57]} 4. Nf3 {[%clk 0:02:57]}  e6 {[%clk 0:02:57]} 5. h3 {[%clk 0:02:57]}  Bh5 {[%clk 0:02:56]} 6. c4 {[%clk 0:02:56]}  Bb4+ {[%clk 0:02:55]} 7. Nc3 {[%clk 0:02:53]}  O-O {[%clk 0:02:56]} 8. Be2 {[%clk 0:02:53]}  dxc4 {[%clk 0:02:54]} 9. Bxc4 {[%clk 0:02:52]}  Nd5 {[%clk 0:02:51]} 10. Bxd5 {[%clk 0:02:48]}  exd5 {[%clk 0:02:50]} 11. O-O {[%clk 0:02:48]}  c6 {[%clk 0:02:49]} 12. Qb3 {[%clk 0:02:42]}  a5 {[%clk 0:02:31]} 13. Ne5 {[%clk 0:02:41]}  Nd7 {[%clk 0:02:26]} 14. a3 {[%clk 0:02:35]}  Nxe5 {[%clk 0:02:18]} 15. Bxe5 {[%clk 0:02:29]}  Bxc3 {[%clk 0:02:11]} 16. Qxc3 {[%clk 0:02:22]}  a4 {[%clk 0:02:01]} 17. f3 {[%clk 0:02:03]}  Bg6 {[%clk 0:01:58]} 18. Rfe1 {[%clk 0:02:03]}  Qd7 {[%clk 0:01:57]} 19. Qb4 {[%clk 0:01:59]}  Rfe8 {[%clk 0:01:54]} 20. Qd6 {[%clk 0:01:56]}  Qc8 {[%clk 0:01:51]} 21. Qc7 {[%clk 0:01:55]}  f6 {[%clk 0:01:43]} 22. Qxc8 {[%clk 0:01:54]}  Raxc8 {[%clk 0:01:44]} 23. Bd6 {[%clk 0:01:52]}  Bd3 {[%clk 0:01:40]} 24. Kf2 {[%clk 0:01:51]}  Kf7 {[%clk 0:01:39]} 25. Rad1 {[%clk 0:01:48]}  Bc4 {[%clk 0:01:38]} 26. e4 {[%clk 0:01:45]}  Re6 {[%clk 0:01:38]} 27. e5 {[%clk 0:01:43]}  f5 {[%clk 0:01:00]} 28. g4 {[%clk 0:01:29]}  g6 {[%clk 0:00:59]} 29. f4 {[%clk 0:01:25]}  Ra8 {[%clk 0:00:58]} 30. Rg1 {[%clk 0:01:20]}  Ree8 {[%clk 0:00:54]} 31. gxf5 {[%clk 0:01:15]}  gxf5 {[%clk 0:00:55]} 32. Rg5 {[%clk 0:01:15]}  Ke6 {[%clk 0:00:52]} 33. Rg7 {[%clk 0:01:12]}  Ra5 {[%clk 0:00:31]} 34. Rxh7 {[%clk 0:01:10]}  Rb5 {[%clk 0:00:31]} 35. Rg1 {[%clk 0:00:59]}  Rxb2+ {[%clk 0:00:31]} 36. Ke3 {[%clk 0:00:58]}  Rb3+ {[%clk 0:00:19]} 37. Kd2 {[%clk 0:00:54]}  Rb2+ {[%clk 0:00:16]} 38. Kc1 {[%clk 0:00:52]} 1-0


[Site "https://www.chess.com"]

[Event "Titled Tuesday Blitz December 20 Early 2022"]
[White "AttractiveChess"]
[Black "Leon-Black"]
[WhiteElo "2784"]
[BlackElo "2634"]
[Result "1-0"]
[Round "10"]
[TimeControl "180+2"]
[Date "2022.12.20"]
[WhiteClock "0:00:16"]
[BlackClock "0:00:02"]

1. Nf3 {[%clk 0:03:00]}  d5 {[%clk 0:02:59]} 2. c4 {[%clk 0:03:00]}  e6 {[%clk 0:03:00]} 3. b3 {[%clk 0:03:00]}  Nf6 {[%clk 0:02:58]} 4. g3 {[%clk 0:03:00]}  a5 {[%clk 0:02:57]} 5. Nc3 {[%clk 0:02:59]}  Be7 {[%clk 0:02:56]} 6. Bg2 {[%clk 0:02:59]}  O-O {[%clk 0:02:57]} 7. O-O {[%clk 0:02:59]}  c6 {[%clk 0:02:54]} 8. Qc2 {[%clk 0:02:49]}  Nbd7 {[%clk 0:02:52]} 9. Bb2 {[%clk 0:02:47]}  b6 {[%clk 0:02:50]} 10. e4 {[%clk 0:02:43]}  dxe4 {[%clk 0:02:44]} 11. Nxe4 {[%clk 0:02:42]}  Bb7 {[%clk 0:02:43]} 12. Nd4 {[%clk 0:02:40]}  Qc7 {[%clk 0:02:34]} 13. Rfe1 {[%clk 0:02:40]}  Rfe8 {[%clk 0:02:31]} 14. Rad1 {[%clk 0:02:32]}  a4 {[%clk 0:02:22]} 15. h4 {[%clk 0:02:32]}  axb3 {[%clk 0:02:22]} 16. axb3 {[%clk 0:02:33]}  h6 {[%clk 0:02:23]} 17. Bc3 {[%clk 0:02:29]}  Nxe4 {[%clk 0:02:20]} 18. Qxe4 {[%clk 0:02:26]}  Bf6 {[%clk 0:02:01]} 19. b4 {[%clk 0:01:46]}  Ra7 {[%clk 0:01:29]} 20. Nxc6 {[%clk 0:01:42]}  Bxc3 {[%clk 0:01:17]} 21. dxc3 {[%clk 0:01:43]}  Nf6 {[%clk 0:01:17]} 22. Qf3 {[%clk 0:01:41]}  Rc8 {[%clk 0:01:15]} 23. b5 {[%clk 0:01:39]}  Bxc6 {[%clk 0:00:59]} 24. bxc6 {[%clk 0:01:39]}  Ra5 {[%clk 0:00:59]} 25. Rd2 {[%clk 0:01:35]}  Rc5 {[%clk 0:00:52]} 26. Rd4 {[%clk 0:01:29]}  e5 {[%clk 0:00:47]} 27. Rd5 {[%clk 0:01:09]}  e4 {[%clk 0:00:31]} 28. Qf5 {[%clk 0:00:54]}  Nxd5 {[%clk 0:00:19]} 29. cxd5 {[%clk 0:00:53]}  Qxc6 {[%clk 0:00:13]} 30. Bxe4 {[%clk 0:00:39]}  Qg6 {[%clk 0:00:07]} 31. Qxc8+ {[%clk 0:00:39]}  Rxc8 {[%clk 0:00:08]} 32. Bxg6 {[%clk 0:00:39]}  fxg6 {[%clk 0:00:09]} 33. Re6 {[%clk 0:00:34]}  Rxc3 {[%clk 0:00:08]} 34. Rxb6 {[%clk 0:00:29]}  Rd3 {[%clk 0:00:08]} 35. Rd6 {[%clk 0:00:28]}  Kf7 {[%clk 0:00:08]} 36. Rd7+ {[%clk 0:00:27]}  Kf6 {[%clk 0:00:09]} 37. Kg2 {[%clk 0:00:28]}  g5 {[%clk 0:00:08]} 38. hxg5+ {[%clk 0:00:26]}  hxg5 {[%clk 0:00:06]} 39. Rd6+ {[%clk 0:00:23]}  Kf5 {[%clk 0:00:06]} 40. Kf1 {[%clk 0:00:21]}  g4 {[%clk 0:00:04]} 41. Ke2 {[%clk 0:00:21]}  Rd4 {[%clk 0:00:05]} 42. Ke3 {[%clk 0:00:22]}  Rd1 {[%clk 0:00:05]} 43. Rd8 {[%clk 0:00:21]}  Ke5 {[%clk 0:00:03]} 44. d6 {[%clk 0:00:17]}  Re1+ {[%clk 0:00:02]} 45. Kd2 {[%clk 0:00:16]} 1-0


[Site "https://www.chess.com"]